bitfinex-derivatives/quotes_ETHF0:USTF0_20250330
["timestamp","ask_amount","ask_price","bid_price","bid_amount"]
[1743296468940,2.59752,1827.3,1827.0,1.4801]
[1743296469149,5.09752,1827.3,1826.9,3.2078]
[1743296469447,5.09752,1827.3,1826.9,4.5661]
[1743296469843,5.09752,1827.3,1826.9,5.66124]
[1743296470455,5.09752,1827.3,1826.9,4.5661]
[1743296470648,5.82572,1827.3,1826.9,5.66124]
[1743296471043,2.2308,1827.3,1827.2,1.10319804]
[1743296471444,6.96884,1827.5,1827.2,0.00821804]
[1743296471649,0.6993,1827.7,1827.5,1.0948]
[1743296471853,0.6993,1827.7,1827.6,1.3583]
[1743296471854,1.794,1827.7,1827.6,1.3583]
[1743296472151,3.1837,1827.7,1827.6,1.3583]
[1743296472344,2.089,1827.7,1827.6,1.3583]
[1743296472748,3.18368,1827.7,1827.6,1.3583]
[1743296475849,1.3897,1827.7,1827.6,1.3583]
[1743296476043,0.7327,1828.0,1827.9,1.09456]
[1743296476242,0.704,1828.1,1828.0,1.0945]
[1743296476753,0.704,1828.1,1827.9,6.24293]
[1743296477052,2.60470804,1828.2,1828.0,2.5969]
[1743296477252,1.51031804,1828.2,1828.1,2.59684]
[1743296477442,0.00821804,1828.2,1828.1,2.59684]
[1743296479053,0.00821804,1828.2,1828.1,1.5024]
[1743296479257,1.10259804,1828.2,1828.1,1.5024]
[1743296482864,0.00821804,1828.2,1828.1,2.59684]
[1743296483864,0.00821804,1828.2,1828.1,3.34224]
[1743296486264,3.2078,1828.8,1828.2,2.73595]
[1743296486470,1.09409,1828.7,1828.5,1.09418]
[1743296486773,2.46807,1828.8,1828.6,1.4583]
[1743296487072,1.09408,1828.7,1828.6,1.4583]
[1743296487267,1.374,1828.8,1828.6,1.4583]
[1743296487466,2.47628804,1828.8,1828.6,2.55244]
[1743296487867,2.47628804,1828.8,1828.7,1.476]
[1743296488368,1.38221804,1828.8,1828.7,2.57008]
[1743296488567,0.00821804,1828.8,1828.7,2.57008]
[1743296489664,1e-08,1828.8,1828.7,6.53088]
[1743296490060,1e-08,1828.8,1828.7,9.57808]
[1743296490261,1.09351,1829.7,1829.0,2.7347]
[1743296490472,1.466,1829.7,1829.5,1.0936]
[1743296490664,1.466,1829.7,1829.6,1.4076]
[1743296491866,1.466,1829.7,1829.6,2.50115]
[1743296492161,1.466,1829.7,1829.6,1.4076]
[1743296492368,3.94240321,1829.8,1829.6,1.4076]
[1743296492871,1.4984,1829.7,1829.6,1.4076]
[1743296493060,1.09349,1829.7,1829.6,1.4076]
[1743296493773,5.03584321,1829.8,1829.6,2.50114]
[1743296493970,5.03584321,1829.8,1829.6,1.4076]
[1743296494174,5.03584321,1829.8,1829.5,1.10177804]
[1743296494175,3.21320321,1829.8,1829.7,6.12189]
[1743296494869,0.6889,1830.1,1830.0,1.09331]
[1743296495070,4.30103,1830.2,1830.0,1.09331]
[1743296495071,3.2078,1830.2,1830.0,3.644]
[1743296495273,1.09319,1830.2,1830.1,1.3844]
[1743296496868,1.09319,1830.2,1830.0,0.5472]
[1743296496869,1.09325,1830.1,1830.0,0.5472]
[1743296497070,1.09325,1830.1,1829.9,2.45336]
[1743296497071,3.17838,1830.1,1829.9,2.45336]
[1743296497266,3.17838,1830.1,1829.9,1.36]
[1743296497472,1.09331,1830.0,1829.9,1.36]
[1743296497663,0.7025,1830.1,1829.9,2.45333]
[1743296497868,3.17836,1830.1,1829.9,2.45334]
[1743296498063,3.17836,1830.1,1829.9,1.36]
[1743296498269,3.17836,1830.1,1829.9,2.45336]
[1743296498668,3.17836,1830.1,1830.0,1.09331]
[1743296498669,2.0851,1830.1,1830.0,1.09331]
[1743296498869,4.30103,1830.2,1830.1,1.09325]
[1743296498870,3.2078,1830.2,1830.1,1.09325]
[1743296499072,2.0851,1830.4,1830.0,5.003]
[1743296499275,1.79559,1830.4,1830.2,1.09315]
[1743296499470,3.17819,1830.4,1830.3,1.36]
[1743296500678,1.09316,1830.3,1830.1,4.73622]
[1743296500877,1.09316,1830.3,1830.2,1.3824]
[1743296502370,1.09313,1830.3,1830.2,1.3824]
[1743296504175,0.7025,1830.4,1830.0,3.643]
[1743296504373,1.09325,1830.1,1830.0,3.643]
[1743296504573,1.09343,1829.8,1829.7,4.1892]
[1743296504778,1.09343,1829.8,1829.7,3.642]
[1743296505078,1.09343,1829.8,1829.7,4.1892]
[1743296505379,1.09343,1829.8,1829.7,3.642]
[1743296505579,1.09343,1829.8,1829.7,5.5767]
[1743296505769,1.09355,1829.6,1829.5,0.00821804]
[1743296505976,4.30135,1829.6,1829.5,0.00821804]
[1743296506175,1.09355,1829.6,1829.5,0.00821804]
[1743296506372,1.09355,1829.6,1829.5,1.41571804]
[1743296506373,4.30135,1829.6,1829.5,1.41571804]
[1743296506572,4.30135,1829.6,1829.5,0.00821804]
[1743296509471,5.7078,1829.6,1828.9,6.8698]
[1743296509672,7.11304,1829.7,1828.9,6.8698]
[1743296509673,1.09382,1829.2,1829.0,1.3749]
[1743296510174,1.09382,1829.2,1829.0,2.4688]
[1743296510482,1.09382,1829.2,1829.0,1.3749]
[1743296510780,3.2078,1829.3,1829.0,1.3749]
[1743296510781,1.09384,1829.1,1829.0,1.3749]
[1743296511182,1.09381,1829.2,1829.0,2.4688]
[1743296511586,3.21594246,1829.3,1829.0,1.3749]
[1743296511785,1.4503,1829.2,1829.0,2.46876]
[1743296512085,2.54413,1829.2,1829.0,1.3749]
[1743296512285,2.54413,1829.2,1829.0,2.46879]
[1743296512484,1.09384,1829.1,1829.0,1.3749]
[1743296513077,2.54413,1829.2,1829.0,2.46879]
[1743296513582,0.00814246,1829.3,1829.2,1.09378]
[1743296513983,0.00814246,1829.3,1829.2,2.60048]
[1743296514488,1.10186246,1829.3,1829.2,1.5067]
[1743296514876,0.00814246,1829.3,1829.2,2.60048]
[1743296515084,3.2078,1829.7,1829.2,10.8795]
[1743296515383,3.2078,1829.7,1829.6,1.09355]
[1743296515687,4.3013,1829.7,1829.5,4.76357]
[1743296516078,1.0935,1829.7,1829.6,1.489]
[1743296516581,2.73402,1829.5,1829.0,0.5472]
[1743296516783,2.73402,1829.5,1829.0,1.489]
[1743296516784,1.09389,1829.1,1829.0,1.489]
[1743296517789,1.0938,1829.2,1829.0,2.58287]
[1743296517987,1.0938,1829.2,1829.1,1.489]
[1743296522894,1.0939,1829.0,1828.9,0.00819538]
[1743296523089,1.0939,1829.0,1828.9,1.51279538]
[1743296523490,1.8002,1829.0,1828.9,1.51279538]
[1743296523883,4.3016,1829.2,1828.9,5.17679538]
[1743296523884,3.2078,1829.2,1828.9,5.17679538]
[1743296524194,3.2078,1829.2,1829.1,1.09384]
[1743296524195,4.30158,1829.2,1829.1,1.09384]
[1743296524394,4.30158,1829.2,1829.0,2.48825]
[1743296524596,4.30158,1829.2,1829.1,1.3944]
[1743296527290,3.2078,1829.2,1829.1,2.48824]
[1743296527595,4.30158,1829.2,1829.1,1.3944]
[1743296529193,1.09378,1829.2,1829.1,1.3944]
[1743296531093,3.2078,1829.2,1828.9,0.00819538]
[1743296531299,4.3017,1829.0,1828.9,1.46159538]
[1743296531695,5.7894,1829.0,1828.9,1.46159538]
[1743296532000,2.5816,1829.0,1828.9,1.46159538]
[1743296532196,2.5816,1829.0,1828.9,0.00819538]
[1743296532197,5.0816,1829.0,1828.9,0.00819538]
[1743296532399,1.09432,1828.3,1828.2,7.416]
[1743296532694,1.09431,1828.4,1828.2,6.8688]
[1743296532896,1.09439,1828.2,1828.1,3.664]
[1743296533088,1.09438,1828.2,1828.0,4.75849]
[1743296533698,2.60177538,1828.3,1828.0,4.75849]
[1743296533888,2.60177538,1828.3,1828.0,3.664]
[1743296534092,1.09439,1828.2,1828.0,4.75848]
[1743296534395,4.71519538,1828.3,1828.0,3.664]
[1743296534396,1.09444,1828.1,1828.0,3.664]
[1743296534793,1.09442,1828.2,1828.0,4.75849]
[1743296534992,1.09442,1828.2,1828.0,3.664]
[1743296535192,4.71519538,1828.3,1828.0,3.664]
[1743296535193,1.09444,1828.1,1828.0,3.664]
[1743296535400,1.09443,1828.2,1828.0,3.664]
[1743296535595,1.0945,1828.0,1827.9,1.98499538]
[1743296535798,1.0945,1828.0,1827.9,5.64599538]
[1743296536099,1.09447,1828.1,1827.9,6.19335538]
[1743296536398,1.09447,1828.1,1827.9,5.09879538]
[1743296536602,0.00819538,1828.3,1828.2,1.09438]
[1743296536798,3.2078,1828.8,1828.2,3.666]
[1743296536999,3.2078,1828.8,1828.5,1.09418]
[1743296537198,1.09413,1828.7,1828.5,3.667]
[1743296537499,4.30187,1828.8,1828.5,4.76117]
[1743296537694,3.2078,1828.8,1828.6,1.09414]
[1743296537895,3.2078,1828.8,1828.5,3.667]
[1743296538095,4.30187,1828.8,1828.5,4.76117]
[1743296538290,3.2078,1828.8,1828.5,3.667]
[1743296538500,1.09401,1828.9,1828.6,1.09414]
[1743296538799,1.09399,1828.9,1828.7,1.81307]
[1743296538994,3.9199,1829.0,1828.5,3.667]
[1743296538995,3.9199,1829.0,1828.5,4.76117]
[1743296539204,1.09409,1828.7,1828.5,4.76117]
[1743296539397,2.54077,1828.8,1828.5,4.76117]
[1743296539800,1.4467,1828.8,1828.5,3.667]
[1743296540102,1.09404,1828.8,1828.6,1.09414]
[1743296540700,1.4335,1828.9,1828.5,4.76116]
[1743296540899,1.09408,1828.8,1828.6,1.09414]
[1743296541103,1.09421,1828.5,1828.3,5.4883]
[1743296541498,1.09421,1828.5,1828.3,4.394]
[1743296541698,1.09426,1828.4,1828.3,4.393]
[1743296541901,1.09426,1828.4,1828.3,3.674]
[1743296542106,3.2078,1828.4,1828.0,4.9237]
[1743296542307,1.09444,1828.1,1828.0,3.678]
[1743296542605,4.30222,1828.2,1828.0,4.7725]
[1743296542805,5.80672,1828.2,1828.0,4.7725]
[1743296544298,3.2078,1828.2,1828.1,1.09444]
[1743296544504,3.2078,1828.2,1828.0,4.77248]
[1743296544505,4.30221,1828.2,1828.0,4.77248]
[1743296544703,3.2078,1828.2,1828.1,1.09444]
[1743296545103,4.3022,1828.2,1828.0,4.77247]
[1743296545701,1.09444,1828.1,1828.0,3.678]
[1743296546107,2.55744,1828.1,1828.0,3.678]
[1743296546806,1.463,1828.1,1828.0,4.7725]
[1743296547602,2.55744,1828.1,1828.0,3.678]
[1743296547802,1.0945,1828.0,1827.9,0.00819538]
[1743296547997,6.4578,1828.0,1827.9,0.00819538]
[1743296548405,1.787,1828.0,1827.9,0.00819538]
[1743296548602,0.6925,1828.0,1827.9,0.00819538]
[1743296548809,3.2078,1828.2,1828.1,1.09444]
[1743296549009,4.30222,1828.2,1828.0,1.78798]
[1743296549401,1.09442,1828.2,1828.0,1.78798]
[1743296549906,2.51916,1828.3,1828.1,1.09443]
[1743296550412,1.09438,1828.2,1828.1,1.09443]
[1743296550805,2.51917,1828.3,1828.1,1.09443]
[1743296551105,1.0944,1828.2,1828.0,0.6935]
[1743296551306,1.09438,1828.2,1828.1,1.09444]
[1743296551506,1.09438,1828.2,1828.1,1.4372]
[1743296553103,2.51916,1828.3,1828.1,2.53162]
[1743296553303,1.4248,1828.3,1828.2,1.09438]
[1743296553502,2.51912,1828.3,1828.2,1.4372]
[1743296556911,3.2078,1828.4,1828.2,1.4372]
[1743296557213,4.30212,1828.4,1828.2,6.20657]
[1743296557713,5.80742,1828.4,1828.3,1.4434]
[1743296558513,4.7131,1828.4,1828.3,2.53772]
[1743296558711,3.2078,1828.4,1828.3,2.53772]
[1743296558910,5.874,1828.9,1828.4,2.73563]
[1743296558911,0.71,1828.9,1828.4,2.73563]
[1743296559113,5.874,1829.3,1828.4,2.73563]
[1743296559114,6.1454,1829.3,1828.7,3.2078]
[1743296559314,2.59913,1829.2,1828.9,1.09392]
[1743296559513,1.09384,1829.1,1829.0,1.4434]
[1743296560508,1.5053,1829.2,1829.0,2.5373]
[1743296560715,4.6401,1829.3,1829.0,3.0845]
[1743296560912,1.09381,1829.2,1829.0,3.0845]
[1743296562115,1.09381,1829.2,1829.0,1.9906]
[1743296562417,1.09381,1829.2,1829.1,1.5043]
[1743296562713,1.09396,1828.9,1828.8,4.41059538]
[1743296562913,1.09394,1829.0,1828.8,5.50461538]
[1743296563712,1.09396,1828.9,1828.8,0.00819538]
[1743296563917,1.09396,1828.9,1828.8,3.67919538]
[1743296564229,1.09396,1828.9,1828.8,5.04839538]
[1743296564427,1.09386,1829.1,1828.9,1.09392]
[1743296564621,1.09386,1829.1,1828.9,2.46312]
[1743296564928,1.09385,1829.1,1828.9,2.46314]
[1743296565226,1.09385,1829.1,1829.0,1.3692]
[1743296565526,2.51599,1829.2,1829.0,2.46306]
[1743296566025,2.51599,1829.2,1829.1,1.3692]
[1743296566532,1.09391,1829.0,1828.8,5.50297538]
[1743296566828,2.51527,1829.1,1828.9,2.49396]
[1743296567027,2.51527,1829.1,1829.0,1.4]
[1743296567425,1.4214,1829.1,1829.0,2.4939]
[1743296568233,2.51524,1829.1,1829.0,1.4]
[1743296568436,2.51524,1829.1,1829.0,2.4939]
[1743296568731,1.4214,1829.1,1829.0,1.4]
[1743296568933,2.51524,1829.1,1829.0,1.4]
[1743296570628,3.2078,1830.0,1829.3,2.73427]
[1743296570831,2.1756,1829.9,1829.7,1.09344]
[1743296571128,2.1756,1829.9,1829.5,3.706]
[1743296571129,3.2078,1829.8,1829.5,3.706]
[1743296571336,1.09355,1829.6,1829.5,5.0929]
[1743296571633,1.4859,1829.7,1829.1,3.9549]
[1743296571834,3.2078,1829.2,1828.8,3.21599538]
[1743296572133,0.6897,1829.5,1828.8,0.00819538]
[1743296572134,1.09396,1828.9,1828.8,0.00819538]
[1743296572529,2.57986,1828.9,1828.8,0.00819538]
[1743296572932,1.09414,1828.6,1828.5,1.3869]
[1743296573323,4.30192,1828.7,1828.5,1.3869]
[1743296573523,1.4412,1828.6,1828.5,1.3869]
[1743296573735,3.9532,1828.7,1828.5,1.3869]
[1743296573936,1.83951,1828.7,1828.5,1.3869]
[1743296574128,0.7454,1828.7,1828.5,1.3869]
[1743296574329,0.7454,1828.7,1828.5,2.48104]
[1743296574838,1.10225538,1828.8,1828.6,1.4589]
[1743296575039,3.23315538,1828.8,1828.6,1.4589]
[1743296575332,1.4412,1828.7,1828.6,1.4589]
[1743296575537,2.53528,1828.7,1828.6,1.4589]
[1743296575734,1.4412,1828.7,1828.6,1.4589]
[1743296575935,2.53528,1828.7,1828.6,1.4589]
[1743296576539,1.4412,1828.7,1828.6,1.4589]
[1743296576738,0.00819538,1828.8,1828.7,1.09408]
[1743296577038,0.00819538,1828.8,1828.7,4.80608]
[1743296577239,0.00819538,1828.8,1828.7,6.26288]
[1743296578830,2.58058,1829.3,1829.1,1.09382]
[1743296579036,2.58058,1829.3,1829.2,1.383]
[1743296579840,1.4868,1829.3,1829.2,1.383]
[1743296580035,2.58052,1829.3,1829.2,1.383]
[1743296580944,1.4868,1829.3,1829.2,1.383]
[1743296581242,1.4868,1829.3,1829.2,2.47678]
[1743296581438,2.57303,1829.5,1829.3,1.09372]
[1743296581644,2.57303,1829.5,1829.4,1.383]
[1743296581839,1.4794,1829.5,1829.4,1.383]
[1743296582044,3.99771,1829.5,1829.4,1.383]
[1743296582442,3.2078,1829.6,1829.5,1.09361]
[1743296583137,0.7261,1829.9,1829.8,1.09343]
[1743296583739,0.7261,1829.9,1829.8,2.48833]
[1743296583941,1.4247,1830.0,1829.9,1.09337]
[1743296584144,1.4247,1830.0,1829.9,2.48827]
[1743296584344,1.4247,1830.0,1829.9,1.3949]
[1743296584743,1.78133,1830.2,1829.9,1.3949]
[1743296584949,2.0507,1830.2,1829.9,1.3949]
[1743296585149,2.0507,1830.2,1830.1,1.09325]
[1743296585150,0.6881,1830.2,1830.1,1.09325]
[1743296585749,0.6881,1830.2,1830.1,2.45585]
[1743296586345,5.00973,1830.3,1830.1,2.45585]
[1743296586649,1.80193,1830.3,1830.2,1.3626]
[1743296587349,5.00973,1830.3,1830.2,1.3626]
[1743296587750,1.80193,1830.3,1830.2,1.3626]
[1743296588252,1.09325,1830.1,1830.0,3.714]
[1743296588441,1.09325,1830.1,1830.0,5.2208]
[1743296588640,1.09325,1830.1,1830.0,1.5068]
[1743296589051,2.48813,1830.2,1830.0,1.5068]
[1743296589249,2.48813,1830.2,1830.0,2.60009]
[1743296589451,1.3949,1830.2,1830.1,1.09325]
[1743296589745,2.48811,1830.2,1830.0,2.60006]
[1743296590148,1.3949,1830.2,1830.1,1.09325]
[1743296590342,1.0931,1830.4,1830.2,1.09319]
[1743296590550,2.488,1830.4,1830.3,1.5068]
[1743296591448,1.09319,1830.2,1830.1,3.709]
[1743296591655,1.09319,1830.2,1830.1,1.4238]
[1743296592146,2.58399,1830.2,1830.1,1.4238]
[1743296592347,1.4908,1830.2,1830.1,1.4238]
[1743296592654,1.4908,1830.4,1830.2,1.09319]
[1743296592952,2.58387,1830.4,1830.3,1.4238]
[1743296595353,1.4908,1830.4,1829.9,6.9168]
[1743296595557,1.09321,1830.2,1830.0,2.58328]
[1743296595756,5.73005,1830.3,1830.1,2.58322]
[1743296595948,5.73005,1830.3,1830.2,1.49]
[1743296596144,2.52223,1830.3,1830.2,1.49]
[1743296596354,1.4291,1830.3,1830.2,2.58319]
[1743296596656,2.52223,1830.3,1830.2,1.49]
[1743296597044,5.73003,1830.3,1830.2,1.49]
[1743296598952,2.52223,1830.3,1830.2,1.49]
[1743296599655,4.98891,1830.5,1830.3,1.09311]
[1743296599961,4.98891,1830.5,1830.2,1.09315]
[1743296599962,2.48327,1830.4,1830.2,1.09315]
[1743296600160,2.48327,1830.4,1830.3,1.09313]
[1743296600556,1.3902,1830.4,1830.3,1.09313]
[1743296601461,2.48327,1830.4,1830.3,1.09313]
[1743296601755,1.3902,1830.4,1830.2,1.09316]
[1743296601960,1.5012,1830.3,1829.9,7.4632]
[1743296602259,2.59437,1830.3,1830.1,1.09321]
[1743296602460,1.5012,1830.3,1830.2,1.09319]
[1743296602757,2.59433,1830.3,1830.2,1.09319]
[1743296602961,1.5012,1830.3,1830.2,1.09319]
[1743296605259,3.8959,1830.5,1830.3,1.09309]
[1743296605463,4.98895,1830.5,1830.3,1.09309]
[1743296605763,2.46177,1830.4,1830.3,1.09309]
[1743296606461,2.46177,1830.4,1830.2,3.688]
[1743296607662,2.46177,1830.4,1830.2,4.78114]
[1743296608159,2.46177,1830.4,1830.3,1.09313]
[1743296608359,3.2078,1830.5,1830.4,1.09307]
[1743296608761,0.7303,1830.8,1830.4,1.09307]
[1743296608762,3.2078,1831.2,1830.5,2.73253]
[1743296608956,1.09277,1830.9,1830.8,3.2078]
[1743296609258,1.4191,1831.0,1830.8,3.2078]
[1743296609659,2.51183,1831.0,1830.8,4.3006]
[1743296610054,1.4191,1831.0,1830.9,1.09277]
[1743296610251,3.31788,1831.1,1830.9,1.09277]
[1743296610958,1.09277,1830.9,1830.8,3.2078]
[1743296611166,2.58765,1831.0,1830.8,3.2078]
[1743296611367,0.7303,1831.1,1831.0,1.09271]
[1743296611663,3.2078,1831.2,1831.0,1.09271]
[1743296611664,4.7027,1831.2,1831.0,1.09267]
[1743296611859,3.2078,1831.4,1831.2,1.09255]
[1743296612166,3.2078,1831.4,1831.3,1.3828]
[1743296612465,1.81637,1831.4,1831.3,3.7]
[1743296612966,1.81641,1831.4,1831.1,6.16975]
[1743296613157,0.7239,1831.4,1831.1,6.16975]
[1743296613358,0.7239,1831.4,1831.2,1.3781]
[1743296613558,0.7239,1831.4,1831.2,2.47066]
[1743296613757,0.7239,1831.4,1831.3,1.09253]
[1743296613965,0.7239,1831.4,1831.3,1.3781]
[1743296614167,0.7239,1831.4,1831.3,2.47063]
[1743296614367,4.29994,1832.0,1831.7,1.09229]
[1743296614561,1.09217,1831.9,1831.8,1.3781]
[1743296614955,3.2078,1832.0,1831.8,1.3781]
[1743296614956,4.29996,1832.0,1831.8,1.3781]
[1743296615159,4.29996,1832.0,1831.9,1.09217]
[1743296615160,3.2078,1832.0,1831.9,1.09217]
[1743296615458,0.7294,1832.2,1831.9,3.2078]
[1743296615753,3.2078,1832.3,1832.1,1.09203]
[1743296615957,3.2078,1832.3,1832.2,1.3995]
[1743296616264,3.2078,1832.9,1832.8,1.09164]
[1743296616565,1.09119,1833.6,1832.8,6.9188]
[1743296616768,3.2078,1833.3,1832.9,3.2078]
[1743296616967,1.09146,1833.1,1833.0,1.3995]
[1743296617267,1.09155,1833.0,1832.7,0.00819538]
[1743296617456,1.09155,1833.0,1832.7,3.21599538]
[1743296617662,3.2078,1833.1,1832.7,3.21599538]
[1743296617967,1.09163,1832.9,1832.7,3.21599538]
[1743296618268,3.2078,1833.1,1832.7,3.21599538]
[1743296618269,1.09155,1833.0,1832.7,3.21599538]
[1743296618565,3.2078,1833.1,1832.7,3.21599538]
[1743296618961,1.0915,1833.1,1832.7,4.30767538]
[1743296619262,3.2078,1833.3,1832.7,3.21599538]
[1743296619563,3.2078,1832.9,1832.7,1.09988538]
[1743296619766,1.09149,1833.1,1832.7,1.09989538]
[1743296619968,1.09152,1833.0,1832.7,0.00819538]
[1743296620267,9.0818,1833.4,1832.7,6.98599538]
[1743296620470,4.29898,1833.6,1832.9,3.2078]
[1743296620660,4.29896,1833.6,1833.2,1.09134]
[1743296620859,4.29896,1833.6,1833.3,1.4206]
[1743296620860,3.2078,1833.6,1833.3,1.4206]
[1743296621065,1.09125,1833.5,1833.3,1.4206]
[1743296621258,4.29897,1833.6,1833.3,1.4206]
[1743296621465,3.2078,1833.6,1833.4,1.09126]
[1743296621662,3.2078,1833.8,1833.4,3.783]
[1743296621858,3.2078,1833.8,1833.5,1.4247]
[1743296622060,3.2078,1833.8,1833.6,1.09111]
[1743296622262,3.2078,1833.8,1833.7,6.3128]
[1743296622461,3.2078,1834.0,1833.7,5.2217]
[1743296622763,2.72614,1834.8,1833.8,3.7534]
[1743296622764,3.2078,1834.8,1833.8,3.7534]
[1743296622971,1.09059,1834.6,1834.2,1.09077]
[1743296623161,1.09059,1834.6,1834.0,3.2078]
[1743296623162,1.09068,1834.5,1834.3,1.4247]
[1743296623363,3.45398,1835.1,1834.3,1.4247]
[1743296623364,3.2078,1834.8,1834.3,1.4247]
[1743296623672,3.2078,1834.8,1833.8,0.5456]
[1743296623673,5.93464,1834.4,1833.8,3.818]
[1743296623870,3.2078,1834.4,1833.8,5.2427]
[1743296624072,3.2078,1834.0,1833.7,0.00819538]
[1743296624258,3.2078,1834.0,1833.3,3.2078]
[1743296624259,1.09116,1833.6,1833.3,4.5647]
[1743296624466,1.09128,1833.4,1833.3,1.3569]
[1743296624964,3.2078,1833.6,1833.1,3.7534]
[1743296624965,1.0914,1833.2,1833.1,3.2078]
[1743296625161,1.0914,1833.2,1833.1,1.3569]
[1743296625461,1.09955538,1833.3,1833.1,1.3569]
[1743296625869,0.00819538,1833.3,1833.1,1.3569]
[1743296626071,1.0914,1833.2,1833.1,1.3569]
[1743296626574,1.09957538,1833.3,1833.1,1.3569]
[1743296626966,0.00819538,1833.3,1833.1,4.5647]
[1743296627162,0.00819538,1833.3,1833.2,1.3569]
[1743296628071,0.00819538,1833.3,1833.2,2.4483]
[1743296628270,0.00819538,1833.3,1833.2,1.3569]
[1743296629172,1.09095,1834.0,1833.6,1.09112]
[1743296629473,1.09088,1834.1,1833.8,1.09103]
[1743296629773,1.09086,1834.1,1833.9,5.3357]
[1743296630072,1.09089,1834.1,1833.9,5.3357]
[1743296630875,3.2078,1834.6,1833.9,5.3357]
[1743296631173,1.09051,1834.7,1834.4,3.2078]
[1743296631374,1.09051,1834.7,1834.5,1.4885]
[1743296631571,1.09057,1834.6,1834.5,1.4885]
[1743296631971,3.2078,1834.7,1834.2,3.2078]
[1743296632178,1.0908,1834.2,1834.1,0.00819538]
[1743296632374,1.09078,1834.3,1834.1,0.00819538]
[1743296632572,2.49968,1834.3,1834.1,1.49669538]
[1743296632977,1.0908,1834.2,1834.1,0.00819538]
[1743296633272,2.4997,1834.2,1834.1,0.00819538]
[1743296633669,1.0908,1834.2,1834.1,0.00819538]
[1743296633873,2.50198,1834.3,1834.1,0.00819538]
[1743296634173,1.0908,1834.2,1834.1,1.39979538]
[1743296634474,2.502,1834.2,1834.1,1.39979538]
[1743296634777,1.09074,1834.4,1834.1,1.39979538]
[1743296635076,2.50191,1834.4,1834.1,5.69845538]
[1743296635266,2.50191,1834.4,1834.2,3.841]
[1743296635463,3.2078,1834.8,1834.3,3.2078]
[1743296635663,4.29827,1834.8,1834.5,1.09061]
[1743296635869,3.2078,1834.8,1834.6,2.48216]
[1743296636069,4.29825,1834.8,1834.7,1.3916]
[1743296636265,0.02056973,1834.9,1834.7,1.3916]
[1743296636473,1.11096973,1834.9,1834.7,1.9372]
[1743296636681,0.02056973,1834.9,1834.7,1.9372]
[1743296636880,1.11097973,1834.9,1834.7,1.9372]
[1743296637176,1.09045,1834.8,1834.7,1.9372]
[1743296637376,1.09045,1834.8,1834.7,1.3916]
[1743296637673,1.09045,1834.8,1834.7,1.9372]
[1743296637872,1.09045,1834.8,1834.7,1.3916]
[1743296638066,0.02056973,1834.9,1834.7,3.02765]
[1743296638268,0.02056973,1834.9,1834.8,3.845]
[1743296638469,3.2078,1835.3,1834.8,3.2078]
[1743296638672,1.4438,1835.4,1834.9,7.0628]
[1743296638868,1.09015,1835.3,1835.0,1.09031]
[1743296639068,1.4438,1835.4,1835.0,3.2078]
[1743296639270,1.4438,1835.4,1835.0,3.859]
[1743296639573,2.53394,1835.4,1835.0,8.15713]
[1743296639779,1.4438,1835.4,1835.0,7.0668]
[1743296639966,1.09018,1835.3,1835.0,8.15709]
[1743296640172,1.4438,1835.4,1835.0,7.0668]
[1743296640483,4.5748,1835.7,1835.2,4.298]
[1743296640484,1.09005,1835.5,1835.2,4.298]
[1743296640671,1.3599,1835.6,1835.2,3.2078]
[1743296640870,1.09017,1835.3,1835.0,4.29811]
[1743296641071,1.09017,1835.3,1835.1,3.859]
[1743296641473,1.09015,1835.3,1835.1,3.859]
[1743296641674,1.09015,1835.3,1835.1,5.3266]
[1743296642070,1.3599,1835.4,1835.0,3.2078]
[1743296642375,1.09033,1835.0,1834.9,0.00817283]
[1743296642575,1.09051,1834.7,1834.6,3.2078]
[1743296642884,1.09051,1834.7,1834.6,1.4252]
[1743296644080,1.09057,1834.6,1834.5,3.87517283]
[1743296644479,2.58767,1834.6,1834.5,3.87517283]
[1743296644778,2.58767,1834.6,1834.5,5.30037283]
[1743296645185,1.09074,1834.3,1834.2,4.4066]
[1743296645379,4.2985,1834.4,1834.0,4.4066]
[1743296645583,1.09077,1834.3,1834.1,1.4252]
[1743296645981,2.58486,1834.3,1834.1,1.4252]
[1743296647377,1.0908,1834.2,1834.1,1.4252]
[1743296647577,1.0908,1834.2,1834.0,0.00817283]
[1743296647784,1.4941,1834.3,1834.0,0.00817283]
[1743296648086,1.09086,1834.1,1834.0,1.42957283]
[1743296648989,4.29865,1834.2,1834.0,1.42957283]
[1743296649186,1.09086,1834.1,1834.0,1.42957283]
[1743296649385,3.2078,1834.2,1834.0,6.38649283]
[1743296649583,4.29862,1834.2,1834.0,5.29557283]
[1743296649889,1.4941,1834.3,1834.0,6.38648283]
[1743296650290,3.2078,1834.5,1834.4,1.09068]
[1743296650488,3.2078,1834.5,1834.3,4.95671]
[1743296650685,3.2078,1834.5,1834.4,1.4215]
[1743296650988,4.29842,1834.5,1834.4,1.4215]
[1743296651380,1.09062,1834.5,1834.4,1.4215]
[1743296652484,4.688,1834.7,1834.6,1.09057]
[1743296652485,3.2078,1834.7,1834.6,1.09057]
[1743296652695,0.00809765,1834.8,1834.6,4.95257]
[1743296652886,0.00809765,1834.8,1834.7,1.3899]
[1743296653088,0.00809765,1834.8,1834.7,2.48041]
[1743296653392,0.00809765,1834.8,1834.7,5.68821]
[1743296653588,1.3994,1835.3,1834.9,1.09033]
[1743296653791,2.48958,1835.3,1835.0,1.3899]